bitfinex-derivatives/quotes_BNBF0:USTF0_20250329
["timestamp","ask_amount","ask_price","bid_price","bid_amount"]
[1743207251359,0.28025642,621.78,620.53,3.908]
[1743207251563,0.28025642,621.78,620.53,4.827]
[1743207252759,0.32164683,621.8,620.53,4.827]
[1743207252959,0.29596089,621.79,620.53,4.827]
[1743207253970,0.28025642,621.78,620.53,4.827]
[1743207257667,0.29596403,621.77,620.53,4.827]
[1743207258862,0.29596403,621.79,620.53,4.827]
[1743207259068,0.32164683,621.8,620.53,4.827]
[1743207259268,0.29596013,621.79,620.53,4.827]
[1743207259980,0.28025642,621.78,620.53,4.827]
[1743207260969,0.29596124,621.77,620.53,4.827]
[1743207261671,0.29596124,621.77,620.53,4.81992529]
[1743207261966,0.32164683,621.8,620.53,4.81992529]
[1743207262172,0.29596347,621.79,620.53,4.81992529]
[1743207262970,0.28025642,621.78,620.53,4.81992529]
[1743207263979,0.29596371,621.77,620.53,4.81992529]
[1743207265073,0.29596371,621.76,620.53,4.81992529]
[1743207265277,0.32164683,621.8,620.53,4.81992529]
[1743207265475,0.29596426,621.79,620.53,4.81992529]
[1743207265979,0.28025642,621.78,620.53,4.81992529]
[1743207266179,0.29596426,621.77,620.53,4.81992529]
[1743207267176,0.28025642,621.78,620.53,4.81992529]
[1743207267382,0.29596417,621.77,620.53,4.81992529]
[1743207268177,0.28025642,621.78,620.53,4.81992529]
[1743207268780,0.29596288,621.77,620.53,4.81992529]
[1743207270783,0.28025642,621.78,620.53,4.81992529]
[1743207270784,0.32164683,621.8,620.53,4.81992529]
[1743207271380,0.29596181,621.79,620.53,4.81992529]
[1743207271978,0.28025642,621.78,620.53,4.81992529]
[1743207273784,0.32164683,621.8,620.53,4.81992529]
[1743207274282,0.29597126,621.79,620.53,4.81992529]
[1743207274783,0.32164683,621.8,620.53,4.81992529]
[1743207275084,0.28025642,621.78,620.53,4.81992529]
[1743207275685,0.28025642,621.78,620.53,3.829]
[1743207276682,0.32164683,621.8,620.53,3.829]
[1743207277984,0.28020113,621.79,620.53,3.829]
[1743207279683,0.32164683,621.8,620.53,3.829]
[1743207281087,0.28019662,621.79,620.53,3.829]
[1743207282887,0.32164683,621.8,620.53,3.829]
[1743207283091,0.29596074,621.79,620.53,3.829]
[1743207284090,0.28025642,621.78,620.53,3.829]
[1743207284793,0.29595814,621.77,620.53,3.829]
[1743207285894,0.29595814,621.76,620.53,3.829]
[1743207286086,0.29595814,621.79,620.53,3.829]
[1743207287098,0.28025642,621.78,620.53,3.829]
[1743207287295,0.29595814,621.77,620.54,0.28974959]
[1743207287804,0.29595814,621.77,620.19,0.28025642]
[1743207288100,0.29595814,621.77,620.21,0.32247142]
[1743207288305,0.29595814,621.77,620.22,0.28975533]
[1743207288503,0.29595814,621.77,620.24,0.32245582]
[1743207288808,0.29595814,621.77,620.25,0.28975533]
[1743207289000,0.29595814,621.79,620.26,0.32244542]
[1743207289201,0.29595814,621.78,620.27,0.28975533]
[1743207289400,0.32164683,621.8,620.28,0.32243502]
[1743207289401,0.29595814,621.79,620.28,0.32243502]
[1743207289595,0.32166235,621.77,620.28,0.32243502]
[1743207289799,0.29595814,621.76,620.29,0.28975533]
[1743207289999,0.32167269,621.75,620.3,0.32242463]
[1743207290198,0.29597263,621.74,620.31,0.28978519]
[1743207290401,0.29597263,621.74,620.32,0.32241423]
[1743207290605,0.29597263,621.74,620.33,0.28978519]
[1743207290902,0.29597263,621.74,620.34,0.32240384]
[1743207291096,0.29597263,621.74,620.35,0.28978519]
[1743207291303,0.29597263,621.74,620.36,0.32239344]
[1743207291499,0.29597263,621.74,620.37,0.28978519]
[1743207291698,0.29597263,621.74,620.38,0.32238305]
[1743207291903,0.29597263,621.74,620.39,0.28978519]
[1743207293100,0.28029028,621.73,620.39,0.28978519]
[1743207293299,0.29597263,621.72,620.39,0.28978519]
[1743207293605,0.29596291,621.71,620.4,0.28974884]
[1743207293800,0.29596291,621.72,620.39,0.28974884]
[1743207294000,0.29596291,621.71,620.4,1.34674884]
[1743207294199,0.29596291,621.72,620.41,0.28974884]
[1743207294403,0.29596291,621.71,620.41,0.28974884]
[1743207294702,0.32167269,621.75,620.42,0.32236227]
[1743207294910,0.29596058,621.74,620.43,0.28974884]
[1743207295203,0.32167269,621.75,620.43,0.32235707]
[1743207295902,0.28023836,621.74,620.43,0.32235707]
[1743207297701,0.32167269,621.75,620.43,0.32235707]
[1743207298908,0.28020113,621.74,620.43,0.32235707]
[1743207300703,0.32167269,621.75,620.43,0.32235707]
[1743207302008,0.28020113,621.74,620.43,0.32235707]
[1743207303708,0.32167269,621.75,620.43,0.32235707]
[1743207304611,0.32167269,621.75,620.44,0.28976412]
[1743207305107,0.57615772,621.74,620.44,0.28976412]
[1743207305306,0.29596223,621.73,620.44,0.28976412]
[1743207305511,0.28019549,621.74,620.44,0.28976412]
[1743207306011,0.28019549,621.74,620.43,0.32235707]
[1743207306204,0.61767997,621.73,620.43,0.32235707]
[1743207306405,0.32168821,621.72,620.43,0.32235707]
[1743207307113,0.29599495,621.71,620.44,0.28986383]
[1743207307313,0.61768834,621.71,620.44,0.28986383]
[1743207307611,0.29599495,621.7,620.44,0.28986383]
[1743207308008,0.57629313,621.7,620.44,0.28986383]
[1743207308304,0.29599495,621.69,620.44,0.28986383]
[1743207309919,0.29599495,621.7,620.44,0.28986383]
[1743207310107,0.29599495,621.69,620.44,0.28986383]
[1743207310309,0.29599495,621.7,620.44,0.28986383]
[1743207310507,0.29599495,621.69,620.44,0.28986383]
[1743207310816,0.29599495,621.68,620.44,0.28986383]
[1743207311008,0.28031737,621.68,620.43,0.32235707]
[1743207311514,0.61776683,621.67,620.43,0.32235707]
[1743207311711,0.617772,621.66,620.43,0.32235707]
[1743207311908,0.61777718,621.65,620.43,0.32235707]
[1743207312108,0.61778235,621.64,620.43,0.32235707]
[1743207312310,0.61778753,621.63,620.43,0.32235707]
[1743207312510,0.6177927,621.62,620.43,0.32235707]
[1743207312707,0.61779788,621.61,620.43,0.32235707]
[1743207312906,0.32175032,621.6,620.43,0.32235707]
[1743207313107,0.29605822,621.59,620.43,0.32235707]
[1743207313413,0.61781371,621.59,620.43,0.32235707]
[1743207313714,0.29605822,621.58,620.43,0.32235707]
[1743207313914,0.57640043,621.58,620.43,0.32235707]
[1743207314109,0.29605822,621.57,620.43,1.26235707]
[1743207314509,0.29605764,621.56,620.43,1.26235707]
[1743207314710,0.29605764,621.57,620.43,1.26235707]
[1743207314911,0.29605764,621.56,620.43,1.26235707]
[1743207315109,0.29605764,621.55,620.43,1.26235707]
[1743207315413,0.29605764,621.54,620.43,1.26235707]
[1743207315613,0.61782349,621.57,620.43,1.26235707]
[1743207315813,0.29605764,621.56,620.43,1.26235707]
[1743207316210,0.29605764,621.56,620.43,2.43035707]
[1743207317015,0.28034786,621.55,620.43,2.43035707]
[1743207317208,0.29605764,621.54,620.43,2.43035707]
[1743207317408,0.29605764,621.54,620.43,3.44935707]
[1743207317915,0.28034786,621.55,620.43,3.44935707]
[1743207318112,0.29606234,621.54,620.43,3.44935707]
[1743207318416,0.28034786,621.55,620.43,3.44935707]
[1743207318816,0.32176585,621.57,620.43,3.44935707]
[1743207320013,0.28028125,621.56,620.43,3.44935707]
[1743207320311,0.60205227,621.56,620.43,3.44935707]
[1743207321715,0.32177102,621.56,620.43,3.44935707]
[1743207323114,0.28027899,621.55,620.43,3.44935707]
[1743207323316,0.32178138,621.54,620.43,3.127]
[1743207326120,0.57637067,621.53,620.43,3.127]
[1743207326322,0.32179173,621.52,620.43,3.127]
[1743207327317,0.32179173,621.52,620.43,4.1]
[1743207329121,0.28028576,621.51,620.43,4.1]
[1743207329322,0.32180209,621.5,620.43,4.91]
[1743207329718,0.29611633,621.49,620.43,4.91]
[1743207329917,0.32181244,621.48,620.43,4.91]
[1743207332120,0.28029254,621.47,620.43,4.91]
[1743207332320,0.3218228,621.46,620.43,4.91]
[1743207333522,0.29611168,621.45,620.43,4.91]
[1743207333726,0.32183316,621.44,620.43,4.91]
[1743207333926,0.29611168,621.43,620.43,4.91]
[1743207335028,0.28038964,621.42,620.43,4.91]
[1743207335224,0.29611168,621.41,620.43,4.91]
[1743207335727,0.29611142,621.4,620.43,4.91]
[1743207335928,0.29611142,621.41,620.43,4.91]
[1743207336127,0.29611142,621.4,620.43,4.91]
[1743207336323,0.29611142,621.41,620.43,4.91]
[1743207337428,0.29611415,621.4,620.43,4.91]
[1743207337628,0.29611415,621.39,620.43,4.91]
[1743207337926,0.29611415,621.38,620.43,4.91]
[1743207338129,0.29611415,621.37,620.43,4.91]
[1743207338327,0.28038964,621.42,620.43,4.91]
[1743207338524,0.29611373,621.41,620.43,4.91]
[1743207339128,0.28038964,621.42,620.43,4.91]
[1743207339831,0.32183316,621.44,620.43,4.91]
[1743207340027,0.29611359,621.43,620.43,4.91]
[1743207340722,0.32183316,621.44,620.43,4.91]
[1743207340923,0.29611146,621.43,620.43,4.91]
[1743207341129,0.28038964,621.42,620.43,4.91]
[1743207342831,0.32183316,621.44,620.43,4.91]
[1743207343131,0.29611168,621.43,620.43,4.91]
[1743207344026,0.28038964,621.42,620.43,4.91]
[1743207345527,0.29611139,621.41,620.43,4.91]
[1743207346033,0.29611139,621.4,620.43,4.91]
[1743207346233,0.29611139,621.43,620.43,4.91]
[1743207346434,0.32183316,621.44,620.43,4.91]
[1743207346627,0.29611162,621.43,620.43,4.91]
[1743207347034,0.57643125,621.43,620.43,4.91]
[1743207347234,0.29611162,621.42,620.43,4.91]
[1743207348334,0.28031963,621.43,620.43,4.91]
[1743207348536,0.32184351,621.42,620.43,4.91]
[1743207348737,0.29614585,621.41,620.43,4.91]
[1743207348938,0.32185387,621.4,620.43,4.91]
[1743207349233,0.29614585,621.39,620.43,4.91]
[1743207349431,0.32186423,621.38,620.43,4.91]
[1743207349832,0.29614585,621.37,620.43,4.91]
[1743207350036,0.57657052,621.37,620.43,4.91]
[1743207350236,0.29614585,621.36,620.43,4.91]
[1743207351039,0.32187977,621.35,620.43,4.91]
[1743207351237,0.29614585,621.34,620.43,4.91]
[1743207351535,0.29622257,621.33,620.43,4.91]
[1743207351737,0.32189013,621.33,620.43,4.91]
[1743207351938,0.29622257,621.32,620.43,4.91]
[1743207352535,0.3219005,621.31,620.43,4.91]
[1743207352739,0.29622257,621.3,620.43,4.91]
[1743207352935,0.32191086,621.29,620.43,4.91]
[1743207353236,0.29622257,621.28,620.43,4.91]
[1743207353841,0.32192122,621.27,620.43,4.91]
[1743207354035,0.29622257,621.26,620.43,4.91]
[1743207354237,0.32193158,621.25,620.43,4.91]
[1743207354435,0.29622257,621.24,620.43,4.91]
[1743207354640,0.61815934,621.24,620.43,4.91]
[1743207354839,0.29621495,621.23,620.43,4.91]
[1743207355343,0.57667013,621.23,620.43,4.91]
[1743207355644,0.29621495,621.22,620.43,4.91]
[1743207358050,0.29621495,621.21,620.43,4.91]
[1743207358246,0.29621495,621.23,620.43,4.91]
[1743207358447,0.32193677,621.24,620.43,4.91]
[1743207358448,0.29621495,621.2,620.43,4.91]
[1743207358752,0.29621495,621.19,620.43,4.91]
[1743207358948,0.29621495,621.23,620.43,4.91]
[1743207359149,0.28045518,621.19,620.43,4.91]
[1743207359354,0.29621495,621.18,620.43,4.91]
[1743207360152,0.28045518,621.19,620.43,4.91]
[1743207360346,0.29621222,621.18,620.43,4.91]
[1743207361048,0.29621222,621.23,620.43,4.91]
[1743207361247,0.29621222,621.22,620.43,4.91]
[1743207361453,0.29621503,621.21,620.43,4.91]
[1743207361650,0.29621503,621.23,620.43,4.91]
[1743207362051,0.28045518,621.22,620.43,4.91]
[1743207362347,0.29621503,621.21,620.43,4.91]
[1743207364048,0.29621503,621.2,620.43,4.91]
[1743207364247,0.29621503,621.23,620.43,4.91]
[1743207364452,0.61816216,621.22,620.43,4.91]
[1743207364648,0.29621503,621.21,620.43,4.91]
[1743207365052,0.57667699,621.21,620.43,4.91]
[1743207365249,0.29621503,621.2,620.43,4.91]
[1743207366757,0.32194713,621.22,620.43,4.91]
[1743207366958,0.29624339,621.21,620.43,4.91]
[1743207368152,0.28046196,621.2,620.43,4.91]
[1743207368556,0.29624339,621.19,620.43,4.91]
[1743207369867,0.32196786,621.18,620.43,4.91]
[1743207370059,0.29624339,621.17,620.43,4.91]
[1743207370958,0.32196786,621.18,620.43,4.91]
[1743207371363,0.29623846,621.17,620.43,4.91]
[1743207371563,0.32196786,621.18,620.43,4.91]
[1743207373163,0.28047326,621.17,620.43,4.91]
[1743207373358,0.32197823,621.16,620.43,4.91]
[1743207376058,0.28039077,621.15,620.43,4.91]
[1743207378767,0.32197823,621.16,620.43,4.91]
[1743207384776,0.2803919,621.15,620.43,4.91]
[1743207387977,0.32197823,621.16,620.43,4.91]
[1743207388671,0.28037722,621.15,620.43,4.91]
[1743207390774,0.32197823,621.16,620.43,4.91]
[1743207391177,0.28045744,621.14,620.43,4.91]
[1743207393783,0.32197823,621.16,620.43,4.91]
[1743207395083,0.28037609,621.15,620.43,4.91]
[1743207396885,0.32197823,621.16,620.43,4.91]
[1743207398087,0.28038739,621.15,620.43,4.91]
[1743207399793,0.32197823,621.16,620.43,4.91]
[1743207401086,0.28039529,621.15,620.43,4.91]
[1743207402883,0.32197823,621.16,620.43,4.91]
[1743207403982,0.28039303,621.15,620.43,4.91]
[1743207405889,0.32197823,621.16,620.43,4.91]
[1743207406988,0.2803456,621.15,620.43,4.91]
[1743207408786,0.32197823,621.16,620.43,4.91]
[1743207409789,0.28034447,621.15,620.43,4.91]
[1743207411896,0.32197823,621.16,620.43,4.91]
[1743207412194,0.28043032,621.14,620.43,4.91]
[1743207414799,0.32197823,621.16,620.43,4.91]
[1743207415199,0.28043032,621.13,620.43,4.91]
[1743207417803,0.32197823,621.16,620.43,4.91]
[1743207418997,0.2803648,621.15,620.43,4.91]
[1743207423905,0.32197823,621.16,620.43,4.91]
[1743207425106,0.28038061,621.15,620.43,4.91]
[1743207426807,2.47035718,621.75,620.43,4.91]
[1743207427007,0.32168304,621.73,620.43,4.91]
[1743207427507,0.29609799,621.72,620.43,4.91]
[1743207427707,0.32169339,621.71,620.43,4.91]
[1743207427909,0.29609799,621.7,620.43,4.91]
[1743207428107,0.32170374,621.69,620.43,4.91]
[1743207428508,0.29609799,621.68,620.43,4.91]
[1743207428706,0.32171409,621.67,620.43,4.91]
[1743207428907,0.29609799,621.66,620.43,4.91]
[1743207429108,0.32172444,621.65,620.43,4.91]
[1743207429309,0.29609799,621.64,620.43,4.91]
[1743207429506,0.32173479,621.63,620.43,4.91]
[1743207429706,0.29609799,621.62,620.43,4.91]
[1743207429905,0.32174514,621.61,620.43,4.91]
[1743207430106,0.29609799,621.6,620.43,4.91]
[1743207430409,0.32175549,621.59,620.43,4.91]
[1743207430608,0.29609799,621.58,620.43,4.91]
[1743207430810,0.32176585,621.57,620.43,4.91]
[1743207431109,0.29609799,621.56,620.43,4.91]
[1743207431310,0.3217762,621.55,620.43,4.91]
[1743207431510,0.29609799,621.54,620.43,4.91]
[1743207431710,0.32178655,621.53,620.43,4.91]
[1743207431912,0.29609799,621.52,620.43,4.91]
[1743207434111,0.28035689,621.51,620.43,4.91]
[1743207434305,0.29608864,621.5,620.43,4.91]
[1743207435913,0.28035689,621.51,620.43,4.91]
[1743207436112,0.29608356,621.5,620.43,4.91]
[1743207439106,0.29608356,621.52,620.43,4.91]
[1743207439312,0.29608356,621.51,620.43,4.91]
[1743207439513,0.29608356,621.52,620.43,4.91]
[1743207439712,0.29608356,621.51,620.43,4.91]
[1743207440009,0.29608461,621.5,620.43,4.91]
[1743207441409,0.29608436,621.49,620.43,4.91]
[1743207441609,0.29608436,621.48,620.43,4.91]
[1743207441814,0.29608436,621.47,620.43,4.91]
[1743207442015,0.29608436,621.52,620.43,4.91]
[1743207442215,0.29608436,621.51,620.43,4.91]
[1743207442518,0.29608436,621.5,620.43,4.91]
[1743207442714,0.32178655,621.53,620.43,4.91]
[1743207443214,0.28035689,621.49,620.43,4.91]
[1743207445013,0.32178655,621.53,620.43,4.91]
[1743207445209,0.29608611,621.52,620.43,4.91]
[1743207445914,0.32178655,621.53,620.43,4.91]
[1743207446115,0.28035689,621.51,620.43,4.91]
[1743207448011,0.32178655,621.53,620.43,4.91]
[1743207449118,0.28026996,621.52,620.43,4.91]
[1743207454020,0.32178655,621.53,620.43,4.91]
[1743207455221,0.28023836,621.52,620.43,4.91]
[1743207456822,0.32178655,621.53,620.43,4.91]
[1743207458121,0.28023385,621.52,620.43,4.91]
[1743207460024,0.32178655,621.53,620.43,4.91]
[1743207461121,0.28021918,621.52,620.43,4.91]
[1743207464225,0.28021918,621.52,620.44,0.2898745]
[1743207464820,0.28021918,621.52,620.45,0.2898745]
[1743207465022,0.28021918,621.52,620.46,0.2898745]
[1743207465223,0.28021918,621.52,620.47,0.2898745]
[1743207465423,0.28021918,621.52,620.03,0.2898745]
[1743207465620,0.28021918,621.52,620.05,0.32255463]
[1743207465825,0.32178655,621.53,620.06,0.2898745]
[1743207466127,0.32178655,621.53,620.08,0.32253902]
[1743207466327,0.32178655,621.53,620.09,0.2898745]
[1743207466529,0.32178655,621.53,620.11,0.32252342]
[1743207466729,0.32178655,621.53,620.12,0.2898745]
[1743207466928,0.32178655,621.53,620.14,0.32250782]
[1743207467124,0.28024626,621.52,620.14,0.32250782]
[1743207467329,0.28024626,621.52,620.15,0.2898745]
[1743207467528,0.28024626,621.52,620.17,0.32249221]
[1743207467729,0.28024626,621.52,620.18,0.2898745]
[1743207467929,0.28024626,621.52,620.2,0.32247662]
[1743207468125,0.28024626,621.52,620.21,0.2898745]
[1743207468528,0.28024626,621.52,620.22,0.937]
[1743207468930,0.32178655,621.53,620.23,0.28989668]
[1743207469231,0.32178655,621.53,620.24,0.32245582]
[1743207469625,0.32178655,621.53,620.25,0.2898995]
[1743207470127,0.28022144,621.52,620.25,0.2898995]
[1743207470330,0.28022144,621.52,620.26,0.32244542]
[1743207470530,0.28022144,621.52,620.27,0.2898995]
[1743207470830,0.28022144,621.52,620.28,0.6123415]
[1743207471031,0.28022144,621.52,620.29,0.61233631]
[1743207471331,0.28022144,621.52,620.3,0.61233111]
[1743207471527,0.28022144,621.52,620.31,0.61232591]
[1743207471726,0.28022144,621.52,620.32,0.61232071]
[1743207471926,0.32178655,621.53,620.33,0.61231552]
[1743207472128,0.32178655,621.53,620.34,0.61231032]
[1743207472326,0.32178655,621.53,620.35,0.61230512]
[1743207472528,0.32178655,621.53,620.36,0.61229992]
[1743207472727,0.32178655,621.53,620.37,0.61229473]
[1743207472930,0.32178655,621.53,620.38,0.61228953]
[1743207473228,0.28021241,621.52,620.39,0.61228433]
[1743207473432,0.28021241,621.52,620.4,0.61227914]
[1743207473732,0.28021241,621.52,620.41,0.28990648]
[1743207474126,0.28021241,621.52,620.42,0.32236227]
[1743207474330,0.28021241,621.52,620.43,0.28990648]
[1743207475835,0.28021241,621.52,620.44,0.28983983]
[1743207476035,0.28021241,621.52,620.43,0.28983983]
[1743207477634,0.28021241,621.52,620.42,0.32236227]
[1743207477835,0.32178655,621.53,620.43,0.28981048]
[1743207478030,2.47035718,622.2,620.44,0.32235187]
[1743207478236,0.28028012,621.51,620.45,0.28981048]
[1743207478435,0.32145038,622.18,620.46,0.32234148]
[1743207478635,0.29592733,622.17,620.47,0.28981048]
[1743207478836,0.32146588,622.15,620.48,0.32233109]
[1743207479035,0.29592733,622.14,620.49,0.28981048]
[1743207479231,0.32148138,622.12,620.5,0.3223207]
[1743207479435,0.29592733,622.11,620.51,0.28981048]
[1743207479730,0.32149172,622.1,620.52,0.32231032]
[1743207479935,0.29592733,622.09,620.53,0.28981048]
[1743207480134,0.32150205,622.08,620.54,0.32229993]
[1743207480337,0.29592733,622.07,620.55,0.28981048]
[1743207480534,0.29592733,622.07,620.56,0.32228954]
[1743207480736,0.32151239,622.06,620.57,0.28981048]
[1743207481033,0.29592733,622.05,620.57,0.28981048]
[1743207482235,0.28017857,622.04,620.56,0.32228954]
[1743207482438,0.29586649,622.03,620.57,0.28955346]
[1743207482841,0.29586649,622.03,620.58,0.32227915]
[1743207483039,0.32153306,622.02,620.58,0.32227915]
[1743207483340,0.29586649,622.01,620.59,0.28955346]
[1743207483539,0.3215434,622.0,620.59,1.38455346]
[1743207483739,0.29586649,621.99,620.6,0.28955346]
[1743207483934,0.32155374,621.98,620.6,0.28955346]
[1743207484138,0.29586649,621.97,620.6,0.28955346]
[1743207484440,0.32156408,621.96,620.6,0.28955346]
[1743207484635,0.29586649,621.95,620.6,0.28955346]
[1743207484837,0.32157442,621.94,620.6,0.28955346]
[1743207485033,0.29586649,621.93,620.6,0.28955346]
[1743207485238,0.32158476,621.92,620.6,0.28955346]
[1743207485438,0.29586649,621.91,620.6,0.28955346]
[1743207485640,0.32159511,621.9,620.6,0.28955346]
[1743207485837,0.29586649,621.89,620.6,0.28955346]
[1743207486034,0.32160545,621.88,620.6,0.28955346]
[1743207486340,0.32160545,621.88,620.59,1.095]
[1743207488040,0.28015263,621.87,620.59,1.095]
[1743207489844,0.32160545,621.88,620.59,1.095]
[1743207491042,0.28010415,621.87,620.59,1.095]
[1743207491539,0.32161579,621.86,620.59,1.095]
[1743207492645,0.32161579,621.86,620.6,1.266]
[1743207494142,0.28010077,621.85,620.6,1.266]
[1743207494344,0.32162614,621.84,620.6,1.266]
[1743207497145,0.2801019,621.83,620.61,1.186]
[1743207498047,0.29591805,621.82,620.61,1.186]
[1743207498248,0.2801019,621.83,620.61,1.186]
[1743207498748,0.29591997,621.82,620.61,1.186]
[1743207499151,0.29591997,621.83,620.61,1.186]
[1743207499444,0.29591997,621.82,620.62,0.28974125]
[1743207499650,0.29591997,621.81,620.62,0.28974125]
[1743207499848,0.29591997,621.83,620.62,0.28974125]
[1743207500050,0.29591732,621.82,620.63,0.28976567]
[1743207500251,0.28023159,621.8,620.62,0.28976567]
[1743207500551,0.29591732,621.79,620.63,0.28976567]
[1743207500750,0.29591732,621.79,620.64,0.28976567]
[1743207500947,0.29591732,621.79,620.61,1.186]
[1743207501352,0.29591732,621.79,620.62,0.28975784]
[1743207502148,0.29591732,621.83,620.62,0.28975784]
[1743207502352,0.29591732,621.82,620.62,0.28975784]
[1743207502554,0.32162614,621.84,620.62,0.28975784]
[1743207502555,0.29591732,621.83,620.62,0.28975784]
[1743207502953,0.29591732,621.83,620.61,1.186]
[1743207503255,0.28023159,621.82,620.61,1.186]
[1743207503454,0.29591732,621.81,620.61,1.186]
[1743207504049,0.28023159,621.82,620.61,1.186]
[1743207504953,0.32162614,621.84,620.61,1.186]
[1743207505350,0.29591927,621.83,620.61,1.186]
[1743207505857,0.29591927,621.83,620.62,0.28976503]
[1743207506056,0.28023159,621.82,620.61,1.186]
[1743207506557,0.29591732,621.81,620.62,0.28977616]
[1743207509451,0.29591732,621.81,620.61,1.186]
[1743207511750,0.28023159,621.82,620.61,1.186]
[1743207511955,0.29591453,621.81,620.62,0.28977184]
[1743207512352,0.29591453,621.81,620.63,0.846]
[1743207512553,0.29591453,621.81,620.64,0.28977184]
[1743207513060,0.29591453,621.81,620.65,1.237]
[1743207515860,0.29591518,621.8,620.65,1.237]
[1743207516059,0.28023159,621.82,620.65,1.237]
[1743207516060,0.29591518,621.81,620.65,1.237]
[1743207516259,0.28023159,621.82,620.65,1.237]
[1743207517164,0.28023159,621.82,620.65,2.337]
[1743207519963,0.32162614,621.84,620.65,3.129]
[1743207521266,0.280147,621.83,620.65,3.129]
[1743207522566,0.280147,621.83,620.66,0.32223761]
[1743207522959,0.32162614,621.84,620.66,0.32223761]
[1743207523664,0.28010077,621.83,620.66,0.32223761]
[1743207525269,0.28010077,621.83,620.67,0.28966965]
[1743207525465,0.28010077,621.83,620.68,0.32222723]
[1743207525669,0.28010077,621.83,620.69,0.28966965]
[1743207525862,0.32162614,621.84,620.69,0.28966965]
[1743207526169,0.28017857,621.82,620.69,0.28966965]
[1743207528869,0.32162614,621.84,620.69,0.28966965]
[1743207529471,0.28010077,621.83,620.69,0.28966965]
[1743207531565,0.28010077,621.83,620.7,0.28966244]
[1743207531770,0.28010077,621.83,620.71,0.28966244]
[1743207531967,0.28010077,621.83,620.72,0.28966244]
[1743207532168,0.28010077,621.83,620.69,0.28966244]
[1743207532369,0.28010077,621.83,620.7,0.28966244]
[1743207532670,0.28010077,621.83,620.71,0.28966244]
[1743207532870,0.28010077,621.83,620.69,0.28966244]
[1743207533070,0.28010077,621.83,620.72,0.28966244]
[1743207533268,0.28010077,621.83,620.73,0.28966244]
[1743207533469,0.28010077,621.83,620.73,1.231]
[1743207533669,0.28010077,621.83,620.74,0.28966244]
[1743207534871,0.32162614,621.84,620.74,0.28966244]
[1743207535371,0.28016842,621.82,620.74,0.28966244]
[1743207536767,0.28016842,621.82,620.73,1.231]
[1743207536971,0.28016842,621.82,620.74,0.2895862]
[1743207537875,0.32162614,621.84,620.74,0.61178228]
[1743207538072,0.32162614,621.84,620.75,0.2895862]
[1743207539269,0.2800895,621.83,620.75,0.2895862]
[1743207539974,0.2800895,621.83,620.74,0.32219608]
[1743207540168,0.2800895,621.83,620.75,0.28955167]
[1743207540874,0.32162614,621.84,620.75,0.28955167]
[1743207542076,0.28009739,621.83,620.75,0.28955167]
[1743207543876,0.32162614,621.84,620.75,0.28955167]
[1743207544979,0.32162614,621.84,620.76,0.28963396]
[1743207545183,0.28009964,621.83,620.75,0.28963396]
[1743207545375,0.28009964,621.83,620.76,0.28963396]
[1743207545575,0.28009964,621.83,620.75,0.28963396]
[1743207545774,0.28009964,621.83,620.76,0.28963396]
[1743207545974,0.28009964,621.83,620.75,0.28963396]
[1743207546178,0.28009964,621.83,620.74,0.32219608]
[1743207546479,0.28009964,621.83,620.75,0.28967676]
[1743207546978,0.32162614,621.84,620.75,0.28967676]
[1743207548081,0.28011655,621.83,620.74,0.32219608]
[1743207548582,0.28011655,621.83,620.75,0.826]
[1743207548780,0.28011655,621.83,620.75,1.62]
[1743207549881,0.32162614,621.84,620.75,1.62]
[1743207551281,0.28012219,621.83,620.75,1.62]
[1743207552279,0.28012219,621.83,620.76,1.075]
[1743207552984,0.32162614,621.84,620.76,1.075]
[1743207554283,0.2801267,621.83,620.76,1.075]
[1743207554878,0.2801267,621.83,620.77,0.94]
[1743207555479,0.2801267,621.83,620.78,0.2897953]
[1743207555883,0.32162614,621.84,620.78,0.2897953]
[1743207556882,0.32162614,621.84,620.77,0.94]
[1743207557077,0.28012783,621.83,620.78,0.28984563]
[1743207557485,0.29586657,621.82,620.78,1.91684563]
[1743207557683,0.29586657,621.82,620.79,0.28984563]
[1743207557880,0.28012783,621.83,620.78,1.627]
[1743207558983,0.32162614,621.84,620.78,1.627]
[1743207560185,0.28015715,621.83,620.78,1.627]
[1743207561986,0.32162614,621.84,620.78,1.627]
[1743207563091,0.28011204,621.83,620.78,1.627]